fUSD/lending_fUSD_20241221
["ID","MTS","AMOUNT","RATE_DAILY","PERIOD"]
[346170039,1734763862761,-985.94,0.00020272,2]
[346170040,1734763862771,-500.0,0.00020273,2]
[346170041,1734763862780,-522.13,0.00020273,2]
[346170042,1734763862790,-526.95,0.00020273,2]
[346170043,1734763862800,-500.0,0.00020273,2]
[346170044,1734763862810,-500.0,0.00020273,2]
[346170045,1734763862820,-500.0,0.00020273,2]
[346170046,1734763862830,-753.3,0.00020273,2]
[346170047,1734763862840,-151.49890711,0.00020273,2]
[346170048,1734763862850,-500.0,0.00020273,2]
[346170049,1734763862860,-500.0,0.00020273,2]
[346170050,1734763862870,-380.13960335,0.00020273,2]
[346170051,1734763862880,-500.0,0.00020273,2]
[346170052,1734763862889,-500.0,0.00020273,2]
[346170053,1734763862899,-524.03893231,0.00020273,2]
[346170054,1734763862909,-500.0,0.00020273,2]
[346170055,1734763862919,-500.0,0.00020273,2]
[346170056,1734763862929,-500.0,0.00020273,2]
[346170057,1734763862938,-500.0,0.00020273,2]
[346170058,1734763862948,-500.0,0.00020273,2]
[346170059,1734763862958,-817.72,0.00020273,2]
[346170060,1734763862968,-500.0,0.00020273,2]
[346170061,1734763862977,-500.0,0.00020273,2]
[346170062,1734763862987,-500.0,0.00020273,2]
[346170063,1734763862996,-500.0,0.00020273,2]
[346170064,1734763863006,-500.0,0.00020273,2]
[346170065,1734763863016,-619.92,0.00020273,2]
[346170066,1734763863026,-579.8880713,0.00020273,2]
[346170067,1734763863036,-500.0,0.00020273,2]
[346170068,1734763863046,-510.29838043,0.00020273,2]
[346170069,1734763863055,-674.16,0.00020273,2]
[346170070,1734763863066,-500.0,0.00020273,2]
[346170071,1734763863076,-500.0,0.00020273,2]
[346170072,1734763863086,-500.0,0.00020273,2]
[346170073,1734763863096,-781.83,0.00020273,2]
[346170074,1734763863105,-500.0,0.00020273,2]
[346170075,1734763863115,-500.0,0.00020273,2]
[346170076,1734763863125,-500.0,0.00020273,2]
[346170077,1734763863135,-646.79,0.00020273,2]
[346170078,1734763863145,-500.0,0.00020273,2]
[346170079,1734763863155,-1000.0,0.00020273,30]
[346170080,1734763863164,-500.0,0.00020273,2]
[346170081,1734763863174,-759.27,0.00020273,2]
[346170082,1734763863184,-500.0,0.00020273,2]
[346170083,1734763863194,-500.0,0.00020273,2]
[346170084,1734763863204,-535.16,0.00020273,2]
[346170085,1734763863214,-500.0,0.00020273,2]
[346170086,1734763863224,-500.0,0.00020273,2]
[346170087,1734763863234,-1140.19,0.00020273,2]
[346170088,1734763863244,-500.0,0.00020273,2]
[346170089,1734763863255,-507.2602602,0.00020273,2]
[346170090,1734763863266,-500.0,0.00020273,2]
[346170091,1734763863276,-504.11,0.00020273,2]
[346170092,1734763863286,-500.0,0.00020273,2]
[346170093,1734763863297,-713.15,0.00020273,2]
[346170094,1734763863307,-500.0,0.00020273,2]
[346170095,1734763863318,-721.59,0.00020273,2]
[346170096,1734763863329,-500.0,0.00020273,2]
[346170097,1734763863340,-500.0,0.00020273,2]
[346170098,1734763863350,-1544.805157,0.00020273,2]
[346170099,1734763863360,-500.0,0.00020273,2]
[346170100,1734763863370,-925.78,0.00020273,2]
[346170101,1734763863380,-500.0,0.00020273,2]
[346170102,1734763863390,-500.0,0.00020273,2]
[346170103,1734763863400,-500.0,0.00020273,2]
[346170104,1734763863410,-427.8814303,0.00020273,2]
[346170105,1734763863420,-1057.2639,0.00020273,2]
[346170106,1734763863430,-500.0,0.00020273,2]
[346170107,1734763863439,-307.75441069,0.00020273,2]
[346170108,1734763863449,-500.0,0.00020273,2]
[346170109,1734763863459,-500.0,0.00020273,2]
[346170110,1734763863469,-549.38,0.00020273,2]
[346170111,1734763863479,-500.0,0.00020273,2]
[346170112,1734763863488,-500.0,0.00020273,2]
[346170113,1734763863498,-500.0,0.00020273,2]
[346170114,1734763863508,-575.46,0.00020273,2]
[346170115,1734763863518,-792.53,0.00020273,2]
[346170116,1734763863527,-500.0,0.00020273,2]
[346170117,1734763863537,-500.0,0.00020273,2]
[346170118,1734763863547,-635.22,0.00020273,2]
[346170119,1734763863556,-500.0,0.00020273,2]
[346170120,1734763863567,-500.0,0.00020273,2]
[346170121,1734763863577,-880.04,0.00020273,2]
[346170122,1734763863586,-500.0,0.00020273,2]
[346170123,1734763863596,-238.12426596,0.00020273,2]
[346170124,1734763863605,-500.0,0.00020273,2]
[346170125,1734763863615,-500.0,0.00020273,2]
[346170126,1734763863625,-726.35,0.00020273,2]
[346170127,1734763863635,-493.59435651,0.00020273,2]
[346170128,1734763863645,-1008.16,0.00020273,2]
[346170129,1734763863655,-500.0,0.00020273,2]
[346170130,1734763863665,-500.0,0.00020273,2]
[346170131,1734763863675,-500.0,0.00020273,2]
[346170132,1734763863685,-589.35,0.00020273,2]
[346170133,1734763863696,-811.84,0.00020273,2]
[346170134,1734763863706,-500.0,0.00020273,2]
[346170135,1734763863715,-755.42,0.00020273,2]
[346170136,1734763863725,-500.0,0.00020273,2]
[346170137,1734763863735,-500.0,0.00020273,2]
[346170138,1734763863744,-2228.7,0.00020273,2]
[346170139,1734763863754,-500.0,0.00020273,2]
[346170140,1734763863764,-500.0,0.00020273,2]
[346170141,1734763863773,-502.76,0.00020273,2]
[346170142,1734763863783,-889.66,0.00020273,2]
[346170143,1734763863792,-995.12,0.00020273,2]
[346170144,1734763863802,-999.33,0.00020273,2]
[346170145,1734763863813,-500.0,0.00020273,2]
[346170146,1734763863823,-500.0,0.00020273,2]
[346170147,1734763863833,-500.0,0.00020273,2]
[346170148,1734763863843,-511.02,0.00020273,2]
[346170149,1734763863853,-500.0,0.00020273,2]
[346170150,1734763863863,-1503.52,0.00020273,2]
[346170151,1734763863874,-826.38,0.00020273,2]
[346170152,1734763863885,-500.0,0.00020273,2]
[346170153,1734763863895,-526.88,0.00020273,2]
[346170154,1734763863905,-500.0,0.00020273,2]
[346170155,1734763863915,-845.27,0.00020273,2]
[346170156,1734763863925,-1849.16,0.00020273,2]
[346170157,1734763863935,-623.84,0.00020273,2]
[346170158,1734763863944,-500.0,0.00020273,2]
[346170159,1734763863954,-500.0,0.00020273,2]
[346170160,1734763863964,-500.0,0.00020273,2]
[346170161,1734763863974,-658.52,0.00020273,2]
[346170162,1734763863984,-606.39,0.00020273,2]
[346170163,1734763863994,-500.0,0.00020273,2]
[346170164,1734763864004,-669.5,0.00020273,2]
[346170165,1734763864014,-500.0,0.00020273,2]
[346170166,1734763864024,-5337.2,0.00020273,2]
[346170167,1734763864034,-1119.97,0.00020273,2]
[346170168,1734763864044,-1317.83,0.00020273,2]
[346170169,1734763864053,-152.97961451,0.00020273,2]
[346170170,1734763864065,-3834.33,0.00020273,2]
[346170171,1734763864076,-1210.11,0.00020273,2]
[346170172,1734763864086,-500.0,0.00020273,2]
[346170173,1734763864096,-3128.08,0.00020273,2]
[346170174,1734763864106,-500.0,0.00020273,2]
[346170175,1734763864116,-500.0,0.00020273,2]
[346170176,1734763864126,-500.0,0.00020273,2]
[346170177,1734763864136,-3039.32,0.00020273,2]
[346170178,1734763864147,-543.49,0.00020273,2]
[346170179,1734763864158,-1847.86,0.00020273,2]
[346170180,1734763864168,-500.0,0.00020273,2]
[346170181,1734763864179,-805.91,0.00020273,2]
[346170182,1734763864189,-500.0,0.00020273,2]
[346170183,1734763864199,-500.0,0.00020273,2]
[346170184,1734763864209,-623.92,0.00020273,2]
[346170185,1734763864219,-506.6,0.00020273,2]
[346170186,1734763864229,-2527.65,0.00020273,2]
[346170187,1734763864239,-500.0,0.00020273,2]
[346170188,1734763864250,-947.44,0.00020273,2]
[346170189,1734763864263,-944.1,0.00020273,2]
[346170190,1734763864273,-500.0,0.00020273,2]
[346170191,1734763864283,-500.0,0.00020273,2]
[346170192,1734763864294,-500.0,0.00020273,2]
[346170193,1734763864303,-500.0,0.00020273,2]
[346170194,1734763864313,-500.0,0.00020273,2]
[346170195,1734763864324,-500.0,0.00020273,2]
[346170196,1734763864335,-861.65,0.00020273,2]
[346170197,1734763864345,-500.0,0.00020273,2]
[346170198,1734763864355,-540.73,0.00020273,2]
[346170199,1734763864365,-572.84,0.00020273,2]
[346170200,1734763864375,-582.48,0.00020273,2]
[346170201,1734763864384,-588.74,0.00020273,2]
[346170202,1734763864394,-500.0,0.00020273,2]
[346170203,1734763864404,-703.48,0.00020273,2]
[346170204,1734763864414,-500.0,0.00020273,2]
[346170205,1734763864424,-500.0,0.00020273,2]
[346170206,1734763864434,-901.63,0.00020273,2]
[346170207,1734763864444,-997.55,0.00020273,2]
[346170208,1734763864454,-331.72376912,0.00020273,2]
[346170209,1734763864464,-799.68,0.00020273,2]
[346170210,1734763864474,-500.0,0.00020273,2]
[346170211,1734763864484,-500.0,0.00020273,2]
[346170212,1734763864493,-561.21,0.00020273,2]
[346170213,1734763864504,-608.54004304,0.00020273,2]
[346170214,1734763864514,-1229.39,0.00020273,2]
[346170215,1734763864524,-500.0,0.00020273,2]
[346170216,1734763864534,-632.53,0.00020273,2]
[346170217,1734763864544,-422.13349838,0.00020273,2]
[346170218,1734763864555,-1931.34,0.00020273,2]
[346170219,1734763864770,-1470.44,0.00020273,2]
[346170220,1734763864780,-500.0,0.00020273,2]
[346170221,1734763864790,-500.0,0.00020273,2]
[346170222,1734763864799,-500.0,0.00020273,2]
[346170223,1734763864809,-500.0,0.00020273,2]
[346170224,1734763864820,-736.6,0.00020273,2]
[346170225,1734763864830,-500.0,0.00020273,2]
[346170226,1734763864839,-703.2,0.00020273,2]
[346170227,1734763864849,-500.0,0.00020273,2]
[346170228,1734763864858,-1406.58,0.00020273,2]
[346170229,1734763864868,-1544.85,0.00020273,2]
[346170230,1734763864878,-500.0,0.00020273,2]
[346170231,1734763864888,-665.66,0.00020273,2]
[346170232,1734763864898,-514.28,0.00020273,2]
[346170233,1734763864907,-500.0,0.00020273,2]
[346170234,1734763864917,-795.88,0.00020273,2]
[346170235,1734763864926,-500.0,0.00020273,2]
[346170236,1734763864936,-1739.03,0.00020273,2]
[346170237,1734763864946,-500.0,0.00020273,2]
[346170238,1734763864956,-761.21,0.00020273,2]
[346170239,1734763864965,-702.19,0.00020273,2]
[346170240,1734763864975,-1021.76,0.00020273,2]
[346170241,1734763864984,-500.0,0.00020273,2]
[346170242,1734763864994,-500.0,0.00020273,2]
[346170243,1734763865004,-474.7505289,0.00020273,2]
[346170244,1734763865014,-500.0,0.00020273,2]
[346170245,1734763865024,-500.0,0.00020273,2]
[346170246,1734763865033,-500.0,0.00020273,2]
[346170247,1734763865043,-859.2,0.00020273,2]
[346170248,1734763865052,-1193.73,0.00020273,2]
[346170249,1734763865062,-500.0,0.00020273,2]
[346170250,1734763865071,-500.0,0.00020273,2]
[346170251,1734763865081,-632.4,0.00020273,2]
[346170252,1734763865091,-2294.66,0.00020273,2]
[346170253,1734763865100,-806.9,0.00020273,2]
[346170254,1734763865110,-1021.18,0.00020273,2]
[346170255,1734763865120,-1013.35,0.00020273,2]
[346170256,1734763865130,-500.0,0.00020273,2]
[346170257,1734763865139,-632.58,0.00020273,2]
[346170258,1734763865149,-2927.04,0.00020273,2]
[346170259,1734763865158,-500.0,0.00020273,2]
[346170260,1734763865168,-647.88,0.00020273,2]
[346170261,1734763865177,-518.58,0.00020273,2]
[346170262,1734763865187,-4561.25,0.00020273,2]
[346170263,1734763865196,-500.0,0.00020273,2]
[346170264,1734763865205,-872.93,0.00020273,2]
[346170265,1734763865215,-885.58,0.00020273,2]
[346170266,1734763865224,-1603.4,0.00020273,2]
[346170267,1734763865233,-500.0,0.00020273,2]
[346170268,1734763865243,-1346.86,0.00020273,2]
[346170269,1734763865254,-500.0,0.00020273,2]
[346170270,1734763865266,-500.0,0.00020273,2]
[346170271,1734763865276,-763.45,0.00020273,2]
[346170272,1734763865285,-624.80096088,0.00020273,2]
[346170273,1734763865295,-984.85,0.00020273,2]
[346170274,1734763865304,-500.0,0.00020273,2]
[346170275,1734763865314,-873.04,0.00020273,2]
[346170276,1734763865324,-500.0,0.00020273,2]
[346170277,1734763865335,-500.0,0.00020273,2]
[346170278,1734763865345,-620.97,0.00020273,2]
[346170279,1734763865354,-733.9,0.00020273,2]
[346170280,1734763865363,-500.0,0.00020273,2]
[346170281,1734763865373,-1060.44,0.00020273,2]
[346170282,1734763865382,-1223.12,0.00020273,2]
[346170283,1734763865391,-500.0,0.00020273,2]
[346170284,1734763865400,-500.0,0.00020273,2]
[346170285,1734763865410,-633.71,0.00020273,2]
[346170286,1734763865419,-1063.84,0.00020273,2]
[346170287,1734763865429,-500.0,0.00020273,2]
[346170288,1734763865439,-500.0,0.00020273,2]
[346170289,1734763865448,-6034.63,0.00020273,2]
[346170290,1734763865458,-176.30522097,0.00020273,2]
[346170291,1734763865467,-842.49,0.00020273,2]
[346170292,1734763865477,-500.0,0.00020273,2]
[346170293,1734763865486,-500.0,0.00020273,2]
[346170294,1734763865495,-7492.81,0.00020273,2]
[346170295,1734763865505,-500.0,0.00020273,2]
[346170296,1734763865514,-500.0,0.00020273,2]
[346170297,1734763865524,-744.03,0.00020273,2]
[346170298,1734763865534,-946.91,0.00020273,2]
[346170299,1734763865543,-512.74,0.00020273,2]
[346170300,1734763865552,-894.54,0.00020273,2]
[346170301,1734763865562,-500.0,0.00020273,2]
[346170302,1734763865573,-630.38,0.00020273,2]
[346170303,1734763865583,-513.14,0.00020273,2]
[346170304,1734763865592,-569.68,0.00020273,2]
[346170305,1734763865602,-500.0,0.00020273,2]
[346170306,1734763865612,-2074.71,0.00020273,2]
[346170307,1734763865622,-1539.27,0.00020273,2]
[346170308,1734763865631,-500.0,0.00020273,2]
[346170309,1734763865641,-860.01,0.00020273,2]
[346170310,1734763865650,-925.87,0.00020273,2]
[346170311,1734763865660,-500.0,0.00020273,2]
[346170312,1734763865670,-2324.7,0.00020273,2]
[346170313,1734763865679,-500.0,0.00020273,2]
[346170314,1734763865689,-500.0,0.00020273,2]
[346170315,1734763865698,-1111.8,0.00020273,2]
[346170316,1734763865708,-500.0,0.00020273,2]
[346170317,1734763865718,-500.0,0.00020273,2]
[346170318,1734763865728,-500.0,0.00020273,2]
[346170319,1734763865738,-500.0,0.00020273,2]
[346170320,1734763865747,-2018.78,0.00020273,2]
[346170321,1734763865757,-500.0,0.00020286,2]
[346170322,1734763865766,-713.01,0.00020314,2]
[346170323,1734763865777,-150.93681909,0.00020323,2]
[346170324,1734763865786,-637.36,0.00020434,2]
[346170325,1734763865796,-500.0,0.00020434,2]
[346170326,1734763865806,-2722.18434235,0.00020461,2]
[346170327,1734763865818,-254.1,0.000205,2]
[346170328,1734763865827,-500.0,0.00020546,2]
[346170329,1734763865837,-500.0,0.00020546,2]
[346170330,1734763865847,-787.7,0.00020546,2]
[346170331,1734763865857,-500.0,0.00020546,2]
[346170332,1734763865866,-500.0,0.00020546,2]
[346170333,1734763865876,-722.15,0.00020546,2]
[346170334,1734763865886,-598.48,0.00020546,2]
[346170335,1734763865896,-589.12,0.00020546,2]
[346170336,1734763865905,-746.52,0.00020546,2]
[346170337,1734763865915,-500.0,0.00020546,2]
[346170338,1734763865925,-500.0,0.00020546,2]
[346170339,1734763865934,-500.0,0.00020546,2]
[346170340,1734763865945,-500.0,0.00020546,2]
[346170341,1734763865955,-579.24,0.00020546,2]
[346170342,1734763865964,-527.90320449,0.00020546,2]
[346170343,1734763865974,-500.0,0.00020546,2]
[346170344,1734763865986,-361.02512005,0.00020546,2]
[346170345,1734763865996,-709.84,0.00020546,2]
[346170346,1734763866005,-704.07,0.00020546,2]
[346170347,1734763866015,-656.8,0.00020546,2]
[346170348,1734763866025,-772.15,0.00020546,2]
[346170349,1734763866034,-500.0,0.00020546,2]
[346170350,1734763866044,-500.0,0.00020546,2]
[346170351,1734763866054,-500.0,0.00020546,2]
[346170352,1734763866063,-500.0,0.00020546,2]
[346170353,1734763866074,-311.02808323,0.00020546,2]
[346170354,1734763866083,-500.0,0.00020546,2]
[346170355,1734763866093,-1124.77,0.00020546,2]
[346170356,1734763866103,-512.85,0.00020546,2]
[346170357,1734763866113,-1044.57,0.00020546,2]
[346170358,1734763866122,-577.68,0.00020546,2]
[346170359,1734763866131,-500.0,0.00020546,2]
[346170360,1734763866141,-500.0,0.00020546,2]
[346170361,1734763866150,-687.33,0.00020546,2]
[346170362,1734763866160,-727.24,0.00020546,2]
[346170363,1734763866170,-500.0,0.00020546,2]
[346170364,1734763866180,-500.0,0.00020546,2]
[346170365,1734763866189,-671.56,0.00020546,2]
[346170366,1734763866199,-500.0,0.00020546,2]
[346170367,1734763866209,-500.0,0.00020546,2]
[346170368,1734763866220,-604.9,0.00020546,2]
[346170369,1734763866230,-500.0,0.00020546,2]
[346170370,1734763866241,-503.11,0.00020546,2]
[346170371,1734763866252,-500.0,0.00020546,2]
[346170372,1734763866266,-648.38,0.00020546,2]
[346170373,1734763866276,-500.0,0.00020546,2]
[346170374,1734763866286,-534.85,0.00020546,2]
[346170375,1734763866298,-500.0,0.00020546,2]
[346170376,1734763866307,-578.88,0.00020546,2]
[346170377,1734763866317,-500.0,0.00020546,2]
[346170378,1734763866326,-500.0,0.00020546,2]
[346170379,1734763866338,-546.17,0.00020546,2]
[346170380,1734763866349,-500.0,0.00020546,2]
[346170381,1734763866358,-520.15,0.00020546,2]
[346170382,1734763866368,-500.0,0.00020546,2]
[346170383,1734763866379,-628.26,0.00020546,2]
[346170384,1734763866388,-529.73,0.00020546,2]
[346170385,1734763866398,-1052.04,0.00020546,2]
[346170386,1734763866407,-500.0,0.00020546,2]
[346170387,1734763866418,-607.01,0.00020546,2]
[346170388,1734763866428,-752.7,0.00020546,2]
[346170389,1734763866438,-944.17,0.00020546,2]
[346170390,1734763866448,-716.64,0.00020546,2]
[346170391,1734763866457,-829.23,0.00020546,2]
[346170392,1734763866466,-539.95,0.00020546,2]
[346170393,1734763866475,-739.19,0.00020546,2]
[346170394,1734763866485,-783.63,0.00020546,2]
[346170395,1734763866494,-500.0,0.00020546,2]
[346170396,1734763866504,-500.0,0.00020546,2]
[346170397,1734763866514,-1210.89,0.00020546,2]
[346170398,1734763866523,-512.97,0.00020546,2]
[346170399,1734763866532,-1023.43,0.00020546,2]
[346170400,1734763866541,-500.0,0.00020546,2]
[346170401,1734763866551,-500.0,0.00020546,2]
[346170402,1734763866560,-658.92,0.00020546,2]
[346170403,1734763866572,-985.94,0.00020546,2]
[346170404,1734763866581,-500.0,0.00020547,2]
[346170405,1734763866591,-522.13,0.00020547,2]
[346170406,1734763866600,-526.95,0.00020547,2]
[346170407,1734763866610,-638.04766769,0.00020547,2]
[346170408,1734763866619,-500.0,0.00020547,2]
[346170409,1734763866629,-500.0,0.00020547,2]
[346170410,1734763866638,-753.3,0.00020547,2]
[346170411,1734763866648,-500.0,0.00020547,2]
[346170412,1734763866657,-500.0,0.00020547,2]
[346170413,1734763866667,-500.0,0.00020547,2]
[346170414,1734763866676,-646.96826189,0.00020547,2]
[346170415,1734763866686,-500.0,0.00020547,2]
[346170416,1734763866696,-500.0,0.00020547,2]
[346170417,1734763866705,-500.0,0.00020547,2]
[346170418,1734763866715,-500.0,0.00020547,2]
[346170419,1734763866725,-500.0,0.00020547,2]
[346170420,1734763866735,-817.72,0.00020547,2]
[346170421,1734763866744,-500.0,0.00020547,2]
[346170422,1734763866755,-500.0,0.00020547,2]
[346170423,1734763866764,-500.0,0.00020547,2]
[346170424,1734763866774,-500.0,0.00020547,2]
[346170425,1734763866784,-500.0,0.00020547,2]
[346170426,1734763866794,-619.92,0.00020547,2]
[346170427,1734763866803,-500.0,0.00020547,2]
[346170428,1734763866812,-674.16,0.00020547,2]
[346170429,1734763866823,-286.15869802,0.00020547,2]
[346170430,1734763866832,-500.0,0.00020547,2]
[346170431,1734763866842,-500.0,0.00020547,2]
[346170432,1734763866851,-781.83,0.00020547,2]
[346170433,1734763866861,-500.0,0.00020547,2]
[346170434,1734763866871,-500.0,0.00020547,2]
[346170435,1734763866880,-500.0,0.00020547,2]
[346170436,1734763866890,-646.79,0.00020547,2]
[346170437,1734763866899,-500.0,0.00020547,2]
[346170438,1734763866909,-1000.0,0.00020547,30]
[346170439,1734763866918,-500.0,0.00020547,2]
[346170440,1734763866927,-759.27,0.00020547,2]
[346170441,1734763866936,-500.0,0.00020547,2]
[346170442,1734763866946,-552.08741357,0.00020547,2]
[346170443,1734763866956,-535.16,0.00020547,2]
[346170444,1734763866965,-500.0,0.00020547,2]
[346170445,1734763866975,-500.0,0.00020547,2]
[346170446,1734763866984,-1140.19,0.00020547,2]
[346170447,1734763866993,-500.0,0.00020547,2]
[346170448,1734763867003,-500.0,0.00020547,2]
[346170449,1734763867013,-504.11,0.00020547,2]
[346170450,1734763867022,-500.0,0.00020547,2]
[346170451,1734763867031,-713.15,0.00020547,2]
[346170452,1734763867041,-500.0,0.00020547,2]
[346170453,1734763867050,-721.59,0.00020547,2]
[346170454,1734763867059,-500.0,0.00020547,2]
[346170455,1734763867071,-500.0,0.00020547,2]
[346170456,1734763867152,-1544.805157,0.00020547,2]
[346170457,1734763867161,-500.0,0.00020547,2]
[346170458,1734763867171,-925.78,0.00020547,2]
[346170459,1734763867179,-500.0,0.00020547,2]
[346170460,1734763867188,-500.0,0.00020547,2]
[346170461,1734763867198,-500.0,0.00020547,2]
[346170462,1734763867207,-1057.2639,0.00020547,2]
[346170463,1734763867217,-500.0,0.00020547,2]
[346170464,1734763867226,-500.0,0.00020547,2]
[346170465,1734763867235,-500.0,0.00020547,2]
[346170466,1734763867245,-549.38,0.00020547,2]
[346170467,1734763867255,-500.0,0.00020547,2]
[346170468,1734763867267,-500.0,0.00020547,2]
[346170469,1734763867275,-500.0,0.00020547,2]
[346170470,1734763867284,-575.46,0.00020547,2]
[346170471,1734763867294,-792.53,0.00020547,2]
[346170472,1734763867303,-500.0,0.00020547,2]
[346170473,1734763867312,-500.0,0.00020547,2]
[346170474,1734763867325,-635.22,0.00020547,2]
[346170475,1734763867336,-500.0,0.00020547,2]
[346170476,1734763867345,-506.97266176,0.00020547,2]
[346170477,1734763867354,-880.04,0.00020547,2]
[346170478,1734763867363,-385.92276352,0.00020547,2]
[346170479,1734763867372,-500.0,0.00020547,2]
[346170480,1734763867381,-500.0,0.00020547,2]
[346170481,1734763867391,-726.35,0.00020547,2]
[346170482,1734763867401,-1008.16,0.00020547,2]
[346170483,1734763867410,-234.91452219,0.00020547,2]
[346170484,1734763867419,-500.0,0.00020547,2]
[346170485,1734763867428,-500.0,0.00020547,2]
[346170486,1734763867438,-589.35,0.00020547,2]
[346170487,1734763867447,-811.84,0.00020547,2]
[346170488,1734763867456,-500.0,0.00020547,2]
[346170489,1734763867466,-755.42,0.00020547,2]
[346170490,1734763867475,-500.0,0.00020547,2]
[346170491,1734763867484,-500.0,0.00020547,2]
[346170492,1734763867493,-2228.7,0.00020547,2]
[346170493,1734763867502,-500.0,0.00020547,2]
[346170494,1734763867511,-500.0,0.00020547,2]
[346170495,1734763867521,-502.76,0.00020547,2]
[346170496,1734763867530,-889.66,0.00020547,2]
[346170497,1734763867538,-995.12,0.00020547,2]
[346170498,1734763867548,-999.33,0.00020547,2]
[346170499,1734763867557,-500.0,0.00020547,2]
[346170500,1734763867568,-500.0,0.00020547,2]
[346170501,1734763867577,-500.0,0.00020547,2]
[346170502,1734763867586,-511.02,0.00020547,2]
[346170503,1734763867595,-500.0,0.00020547,2]
[346170504,1734763867604,-1503.52,0.00020547,2]
[346170505,1734763867614,-826.38,0.00020547,2]
[346170506,1734763867623,-244.38810953,0.00020547,2]
[346170507,1734763867632,-526.88,0.00020547,2]
[346170508,1734763867641,-500.0,0.00020547,2]
[346170509,1734763867650,-845.27,0.00020547,2]
[346170510,1734763867660,-1849.16,0.00020547,2]
[346170511,1734763867669,-623.84,0.00020547,2]
[346170512,1734763867678,-383.29440181,0.00020547,2]
[346170513,1734763867688,-500.0,0.00020547,2]
[346170514,1734763867698,-500.0,0.00020547,2]
[346170515,1734763867707,-658.52,0.00020547,2]
[346170516,1734763867716,-606.39,0.00020547,2]
[346170517,1734763867726,-500.0,0.00020547,2]
[346170518,1734763867735,-669.5,0.00020547,2]
[346170519,1734763867745,-500.0,0.00020547,2]
[346170520,1734763867755,-5337.2,0.00020547,2]
[346170521,1734763867764,-1119.97,0.00020547,2]
[346170522,1734763867774,-1317.83,0.00020547,2]
[346170523,1734763867783,-3834.33,0.00020547,2]
[346170524,1734763867793,-1210.11,0.00020547,2]
[346170525,1734763867802,-500.0,0.00020547,2]
[346170526,1734763867812,-3128.08,0.00020547,2]
[346170527,1734763867824,-500.0,0.00020547,2]
[346170528,1734763867833,-500.0,0.00020547,2]
[346170529,1734763867843,-500.0,0.00020547,2]
[346170530,1734763867852,-3039.32,0.00020547,2]
[346170531,1734763867862,-543.49,0.00020547,2]
[346170532,1734763867871,-1847.86,0.00020547,2]
[346170533,1734763867880,-500.0,0.00020547,2]
[346170534,1734763867890,-805.91,0.00020547,2]
[346170535,1734763867899,-302.33915747,0.00020547,2]
[346170536,1734763867908,-500.0,0.00020547,2]
[346170537,1734763867918,-623.92,0.00020547,2]
[346170538,1734763867927,-506.6,0.00020547,2]